Cogmind - Beta 13 @@@ ROGUE MODE // 2024.07.08 @ 12:09:10 Player: APerTAS Result: Self-destructed Performance ------------- Evolutions (1) 500 Regions Visited (3) 600 Robots Destroyed (9) 45 Value Destroyed (193) 193 Prototype IDs (4) 80 Alien Tech Used (0) 0 Bonus (0) 0 TOTAL SCORE: 1418 Bonus ------- None Cogmind --------- Core Integrity 353/400 Matter 8/300 Energy 125/125 System Corruption 0% Temperature Cool (0) Movement Rolling (105) Ox1 Location -9/Materials Parts ------- > --- POWER (1) -------- Light Ion Engine > --- PROPULSION (2) --- Wheel Compact Wheel > --- UTILITY (4) ------ Heat Sink High-capacity Storage Unit Structural Scanner ECM Suite > --- WEAPON (2) ------- Grenade Launcher Datajack > --- INVENTORY (20) --- Light Ion Engine Wheel Wheel Small Matter Pod (0) EM Pulse Gun Assault Rifle Mining Laser Peak State ------------ > --- POWER ------------ Light Ion Engine > --- PROPULSION ------- Wheel Compact Wheel > --- UTILITY ---------- Heat Sink High-capacity Storage Unit Structural Scanner ECM Suite > --- WEAPON ----------- Datajack Mining Laser > --- INVENTORY -------- Light Ion Engine Wheel Wheel Small Matter Pod EM Pulse Gun Assault Rifle Grenade Launcher [Rating: 9] Favorites ----------- Power Light Ion Engine Engine Light Ion Engine Propulsion Wheel Wheel Wheel Utility Structural Scanner Device Structural Scanner Storage Small Storage Unit Weapon Assault Rifle Ballistic Gun Assault Rifle Launcher Grenade Launcher Special Weapon Mining Laser Special Melee Weapon Datajack Build | -11 -10 -10 -9 ------- Run | Yrd Mat Min Mat Slots Evolved 2 | . . . 2 Power . | . . . . Propulsion . | . . . . Utility 2 | . . . 2 Weapon . | . . . . Parts Attached 21 | 6 6 5 4 Power 2 | 1 1 . . Engine 2 | 1 1 . . Core . | . . . . Reactor . | . . . . Propulsion 3 | 2 1 . . Treads . | . . . . Leg . | . . . . Wheel 3 | 2 1 . . Hover . | . . . . Flight . | . . . . Utility 8 | 1 2 3 2 Device 6 | . 2 2 2 Storage 2 | 1 . 1 . Processor . | . . . . Hackware . | . . . . Protection . | . . . . Artifact . | . . . . Weapon 8 | 2 2 2 2 Energy Gun . | . . . . Energy Cannon . | . . . . Ballistic Gun 3 | 2 1 . . Ballistic Cannon . | . . . . Launcher 2 | . 1 . 1 Special Weapon 1 | . . 1 . Impact Weapon . | . . . . Slashing Weapon . | . . . . Piercing Weapon . | . . . . Special Melee Weapon 2 | . . 1 1 Unidentified Prototypes . | . . . . Parts Lost . | . . . . Power . | . . . . Propulsion . | . . . . Utility . | . . . . Weapon . | . . . . Highest Loss Streak . | . . . . To Critical Strikes . | . . . . Average Slot Usage (%) 98 | . 96 100 100 Engine 13 | . 14 14 11 Wheel 27 | . 28 28 22 Device 14 | . 11 14 33 Storage 13 | . 14 14 11 Ballistic Gun 11 | . 14 9 . Launcher 10 | . 13 5 9 Special Weapon 1 | . . 4 1 Special Melee Weapon 3 | . . 8 11 Naked Turns . | . . . . Heaviest Build 51 | 12 14 49 51 Greatest Support 26 | 26 26 26 26 Greatest Overweight (x) 1 | . . 1 1 Average Overweight (x) . | . . . 1 Largest Inventory Capacity 20 | 8 8 20 20 Average Capacity 11 | 7 8 16 20 Most Carried 9 | 6 8 9 8 Average Carried 6 | 2 6 8 7 Final Capacity 20 | 8 8 20 20 Final Carried 9 | 4 8 9 7 Class Distribution -------------------- 87% | Mutant 12% | Infiltrator-Mutant Dominant Class ---------------- Mutant | -10/Materials Mutant | -10/Mines Infiltrator-Mutant | -9/Materials Resources | -11 -10 -10 -9 ----------- Run | Yrd Mat Min Mat Matter Collected 288 | 241 47 . . Remotely . | . . . . Salvage Created 91 | . 80 . 11 Parts 10 | . 8 . 2 Haulers Intercepted . | . . . . Recyclers Shooed . | . . . . Parts Field Recycled . | . . . . Retrieved Matter . | . . . . Parts Self-Destructed . | . . . . Prevented . | . . . . Kills | -11 -10 -10 -9 ------- Run | Yrd Mat Min Mat Combat Hostiles Destroyed 6 | . 5 . 1 Guns 2 | . 2 . . AOE 4 | . 3 . 1 Classes Destroyed 5 | . 4 . 1 Builder 1 | . 1 . . Tunneler 1 | . . . 1 Watcher 1 | . 1 . . Swarmer 3 | . 3 . . Grunt 3 | . 2 . 1 Best Kill Streak 4 | . 4 . 2 Combat Bots Only 3 | . 3 . 1 Max Kills in Single Turn 2 | . 2 . 2 Gunslinging . | . . . . Exploded 1 | . 1 . 1 Melee . | . . . . Uniques/NPCs Destroyed . | . . . . Combat | -11 -10 -10 -9 -------- Run | Yrd Mat Min Mat Hostile Shots Fired 23 | . 11 . 12 Missed 8 | . 5 . 3 Damage Taken 237 | . 110 . 127 Core 79 | . 32 . 47 Absorbed by Shields . | . . . . Core Remaining (%) 93 | 100 . 87 . Volleys Fired 19 | . 7 5 7 Largest 2 | . 2 1 1 Hottest 100 | . 50 100 30 Shots Fired 26 | . 14 5 7 Gun 7 | . 7 . . Cannon . | . . . . Launcher 14 | . 7 . 7 Special 5 | . . 5 . Kinetic 7 | . 7 . . Thermal 5 | . . 5 . Explosive 14 | . 7 . 7 Electromagnetic . | . . . . Robot Hit Streak 7 | . 7 . 5 Robot Miss Streak 2 | . 2 . 1 Penetration Max . | . . . . Secondary Targets . | . . . . Shots Hit Robots 20 | . 8 8 4 Core Hits 22 | . 14 . 8 Critical Kills . | . . . . Critical Parts Destroyed . | . . . . Critical Strikes . | . . . . Melee Attacks 8 | . . 8 . Impact . | . . . . Slashing . | . . . . Piercing . | . . . . Sneak Attacks 3 | . . 3 . Combat Hostiles . | . . . . Follow-up Attacks . | . . . . Damage Inflicted 564 | . 330 . 234 Guns 65 | . 65 . . Cannons . | . . . . Explosions 499 | . 265 . 234 Melee . | . . . . Ramming . | . . . . Kinetic 65 | . 65 . . Thermal . | . . . . Explosive 499 | . 265 . 234 Electromagnetic . | . . . . Impact . | . . . . Slashing . | . . . . Piercing . | . . . . Highest Corruption 1 | . 1 1 . Average Corruption 1 | . 1 1 . Corruption Purged . | . . . . Corruption Blocked . | . . . . Effects 3 | . 1 2 . Message Errors 1 | . . 1 . Matter Fused 1 | . 1 . . Data Loss (minor) 1 | . . 1 . Overload Shots . | . . . . Overflow Damage . | . . . . Projectiles . | . . . . Explosions . | . . . . Melee . | . . . . Knockbacks . | . . . . Impact . | . . . . Kinetic . | . . . . Secondary . | . . . . Self-Inflicted Damage 51 | . 51 . . Shots 3 | . 3 . . Rammed . | . . . . Targets Rammed . | . . . . Kicked . | . . . . Crushed . | . . . . Highest Temperature 40 | . 11 40 . Average Temperature 17 | . 5 20 . Received Heat Transfer 75 | . 27 . 48 Siege Activations . | . . . . Robots Corrupted . | . . . . Combat Hostiles . | . . . . Parts Fried . | . . . . Impact Corruptions . | . . . . Robots Melted . | . . . . Combat Hostiles . | . . . . Parts Melted . | . . . . Heat Transferred . | . . . . Parts Sabotaged . | . . . . Parts Stolen . | . . . . Parts Stripped . | . . . . Power Chain Reactions . | . . . . Alert | -11 -10 -10 -9 ------- Run | Yrd Mat Min Mat Peak Influence 170 | . 170 66 124 Initial 66 | . . 66 25 Average 70 | . 92 66 46 Maximum Alert Level . | . . . . Low Security (%) 100 | 100 100 100 100 Level 1 . | . . . . Level 2 . | . . . . Level 3 . | . . . . Level 4 . | . . . . Level 5 . | . . . . High Security . | . . . . Max Security . | . . . . Squads Dispatched . | . . . . Investigation . | . . . . Extermination . | . . . . Reinforcement . | . . . . Assault . | . . . . Garrison . | . . . . Intercept . | . . . . Searches Triggered . | . . . . Construction Impeded . | . . . . Haulers Reinforced . | . . . . Active Scanning Responses . | . . . . Cargo Convoy Interrupts . | . . . . Stealth | -11 -10 -10 -9 --------- Run | Yrd Mat Min Mat Distress Signals . | . . . . Communications Jammed . | . . . . Distress Signals . | . . . . Times Spotted 6 | . 4 . 2 Peak Tracking Total 2 | . 2 . 1 Tactical Retreats . | . . . . Traps | -11 -10 -10 -9 ------- Run | Yrd Mat Min Mat Traps Triggered 1 | . 1 . . Indirectly . | . . . . Trap Hack Attempts . | . . . . Triggered . | . . . . Disarmed . | . . . . Reprogrammed . | . . . . Reused . | . . . . Traps Extracted . | . . . . Installed . | . . . . Triggered . | . . . . Machines | -11 -10 -10 -9 ---------- Run | Yrd Mat Min Mat Machines Disabled 2 | . . . 2 Max in Single Turn 2 | . . . 2 Machines Repaired . | . . . . Machines Dismantled . | . . . . Machines Sabotaged . | . . . . Overloaded Fab Kills . | . . . . Hacking | -11 -10 -10 -9 --------- Run | Yrd Mat Min Mat Machines Accessed 3 | . 3 . . Terminals 3 | . 3 . . Fabricators . | . . . . Repair Stations . | . . . . Recycling Units . | . . . . Scanalyzers . | . . . . Garrison Access . | . . . . Total Hacks 9 | . 9 . . Successful 3 | . 3 . . Failed 6 | . 6 . . Catastrophic . | . . . . Database Lockouts . | . . . . Manual . | . . . . Terminals 9 | . 9 . . Fabricators . | . . . . Repair Stations . | . . . . Recycling Units . | . . . . Scanalyzers . | . . . . Garrison Access . | . . . . Terminal Hacks 3 | . 3 . . Prototype ID Bank 2 | . 2 . . Hauler Manifests 1 | . 1 . . Fabricator Hacks . | . . . . Repair Station Hacks . | . . . . Recycling Unit Hacks . | . . . . Scanalyzer . | . . . . Garrison Access Hacks . | . . . . Unauthorized Hacks . | . . . . Terminals . | . . . . Fabricators . | . . . . Repair Stations . | . . . . Recycling Units . | . . . . Scanalyzers . | . . . . Garrison Access . | . . . . Data Cores Recovered . | . . . . Used . | . . . . Hacking Detections 3 | . 3 . . Full Trace Events . | . . . . Feedback Events . | . . . . Feedback Blocked . | . . . . Robot Schematics Acquired . | . . . . Robots Built . | . . . . Authchips . | . . . . Time . | . . . . Total Robot Build Rating . | . . . . Part Schematics Acquired . | . . . . Parts Built . | . . . . Authchips . | . . . . Time . | . . . . Total Part Build Rating . | . . . . Parts Repaired . | . . . . Time . | . . . . Parts Recycled . | . . . . Recycled Matter . | . . . . Retrieved Matter . | . . . . Retrieved Components . | . . . . Parts Scanalyzed . | . . . . Part Schematics Acquired . | . . . . Parts Damaged . | . . . . Bothacking | -11 -10 -10 -9 ------------ Run | Yrd Mat Min Mat Used RIF Installer . | . . . . Robots Hacked 2 | . . 2 . Non-combat 2 | . . 2 . Combat . | . . . . Robot Hacks Applied 2 | . . 2 . parse_system 1 | . . 1 . no_distress 1 | . . 1 . Relay Couplers Released . | . . . . Fabnet Peak Effective % . | . . . . Robots Rewired . | . . . . Allies Hacked . | . . . . Hacks Repelled . | . . . . Allies | -11 -10 -10 -9 -------- Run | Yrd Mat Min Mat Total Allies . | . . . . Largest Group . | . . . . Highest-Rated Group . | . . . . Highest-Rated Ally . | . . . . Total Orders . | . . . . Ally Attacks . | . . . . Total Damage . | . . . . Kills . | . . . . Allies Corrupted . | . . . . Allies Melted . | . . . . Intel | -11 -10 -10 -9 ------- Run | Yrd Mat Min Mat Robot Analysis Total . | . . . . Derelict Logs Recovered . | . . . . Drone Launches . | . . . . Drone Recoveries . | . . . . Exploration | -11 -10 -10 -9 ------------- Run | Yrd Mat Min Mat Turns Passed 650 | 72 342 163 73 Spaces Moved 559 | 67 324 117 51 Core 6 | 6 . . . Treads . | . . . . Legs . | . . . . Wheels 553 | 61 324 117 51 Hover . | . . . . Flight . | . . . . Fastest Speed 50 | 50 90 90 105 Average Speed 92 | 83 90 99 105 Slowest Speed 105 | 90 90 105 105 Overloaded Moves . | . . . . Propulsion Burnouts . | . . . . Robots Hopped . | . . . . Cave-ins Triggered . | . . . . Exploration Rate (%) 19 | 4 41 24 10 Regions Visited 3 Branch Regions 1 Pre-discovered Areas 1 | . . 1 . Known Exits Taken . | . . . . Unknown Exits Taken 3 | 1 1 1 . Scrap Searched . | . . . . Spaces Dug 2 | . . 2 . Terrain Destroyed 66 | . 32 2 32 Melee . | . . . . Projectile 2 | . . 2 . AOE 64 | . 32 . 32 Terrain Rammed . | . . . . Walls Destroyed . | . . . . Machines Disabled . | . . . . Actions | -11 -10 -10 -9 --------- Run | Yrd Mat Min Mat Total 648 | 82 360 144 62 Wait 7 | . 7 . . Move 556 | 66 323 116 51 Hop . | . . . . Pick Up 25 | 10 11 4 . Fast Attach . | . . . . Attach 10 | 6 1 1 2 Detach . | . . . . Swap 11 | . 5 4 2 Drop 9 | . 6 3 . Fire 19 | . 7 5 7 Melee 8 | . . 8 . Ram . | . . . . Kick . | . . . . Crush . | . . . . Escape Stasis . | . . . . Rewire 3 | . . 3 . Trap . | . . . . Miscellaneous . | . . . . Route ------- -11/Scrapyard -10/Materials -10/Mines -9/Materials History --------- Turn | Location | Event 22 | -11/Scrapyard | Discovered new exit (range 16) 73 | -11/Scrapyard | Entered Materials 307 | -10/Materials | Build established: Mutant 396 | -10/Materials | Discovered new exit (range 13) 415 | -10/Materials | Entered Mines 416 | -10/Mines | Learned location of Storage (-9) 448 | -10/Mines | Discovered new exit (range 8) 578 | -10/Mines | Entered Materials 578 | -9/Materials | Evolved 2 slots: Utility x2 651 | -9/Materials | Self-destructed Last Messages --------------- T-07 Excavator is excavating. K-01 Serf collects debris. T-07 Excavator is excavating. K-01 Serf collects debris. T-07 Excavator is excavating. K-01 Serf collects debris. T-07 Excavator is excavating. PARAMETERS=UTILITY+2 LOCATION=UNKNOWN GOAL=ESCAPE T-07 Excavator is excavating. G-34 Mercenary destroyed. T-07 Excavator destroyed. U-05 Engineer lays Concrete. Terminal disabled. U-05 Engineer lays Concrete. U-05 Engineer builds a Wall. U-05 Engineer lays Concrete. The unstable cave ceiling collapses. U-05 Engineer lays Concrete. Map ----- +----------------------------------------------------+ | | | | | | | | | | | | | | | | | | | | | | | | | | | | | ????????????????????????############?????????????? | | ?########???????????##### # ?????????????? | | ?########???????????##### ""??????????????? | | ##???????????## """ ???????????? | | "" ##???????????## Y """ ??????????? | | """ ##???????????## # ? # ???????? | | """ ##???????????## /// ??? # ???????? | | """ ##???????????##"" // ???? # ???????? | | "" ##???????????##"T // ???? # ???????? | | ##???????????##"" ???? # ???????? | | ############### # ## ???????? | | ##+######################@#### ##????????? | | ?????? | | ?????? | | = ?????? | | ##+###################### ##u=## #####?????? | | ################## # #### ######?????? | | """""" ##??????????????## ####### # ????????? | | """""" ##??????????????## #####???? # ?????????? | | """""" ##??????????????## ##??????? + ?????????? | | """""" ##??????????????## ##???????????????????? | | """""" ##??????????????## ##???????????????????? | | ? ?? ##??????????????## ##???????????????????? | | ???????????????????????## ##???????????????????? | | ???????????????????????## ##???????????????????? | | ???????????????????????## # ???????????????????? | | ??????????????????????? # # ???????????????????? | | ??????????????????????? # # ???????????????????? | | ?????????????????????????????????????????????????? | | ?????????????????????????????????????????????????? | | ?????????????????????????????????????????????????? | | ?????????????????????????????????????????????????? | | ?????????????????????????????????????????????????? | | ?????????????????????????????????????????????????? | | ?????????????????????????????????????????????????? | | ?????????????????????????????????????????????????? | +----------------------------------------------------+ Best States ------------- Heat Dissipation 38 Energy Generation 10 Energy Capacity 125 Matter Stores 281 Matter Capacity 300 Sight Range 16 Terrain Scan Density 10 ECM Strength 1 Evasion (%) 44 Item Schematics ----------------- None Robot Schematics ------------------ None Fabricated ------------ Nothing Alien Tech Used ----------------- None Achievements -------------- None Challenges ------------ None Game ------ Seed TractorCloakingHumpback Manual? 0 Play Time 00:12:59 Cumulative 5.6 hours Start 2024.07.08 @ 11:51:38 End 2024.07.08 @ 12:09:10 Sessions 1 Manual Loads 0 Difficulty Rogue Special Mode None Game No. 12 Rogue 12 Adventurer 0 Explorer 0 Win Type - Total 0 Types 0/0/0/0/0/0/0/0/0 Lore% 10 Gallery% 7 Achievement% 8 Wizard Run 0 Options --------- Layout 1 ASCII 0 Keyboard 0 Movement Arrows Keybinds 0 Fullscreen 1 Font 28/Dina Map View 50x43 Zoom Use 0% Tactical HUD 0 Map Filters NONE Filters NONE Steam X RUN: 4845fbb1-b16e-42c9-805a-94c7cdbc7d97